[Event "Early-Titled-Tuesday-Blitz-November-28-2023"]
[Site "Chess.com"]
[Date "2023.11.28"]
[Round "7"]
[White "Chessmissile07"]
[Black "SlavenPastar"]
[Result "1-0"]
[WhiteElo "2854"]
[BlackElo "2648"]
[TimeControl "180+1"]
[EndTime "9:22:33 PST"]
[Termination "Chessmissile07 won by checkmate"]

1. a3 {[%clk 0:03:00.9]} 1... b6 {[%clk 0:02:56.2]} 2. c4 {[%clk 0:02:57.5]}
2... Bb7 {[%clk 0:02:56.6]} 3. Nc3 {[%clk 0:02:57.6]} 3... g6 {[%clk 0:02:57.2]}
4. d4 {[%clk 0:02:55.6]} 4... Bg7 {[%clk 0:02:57.8]} 5. e4 {[%clk 0:02:55.7]}
5... d6 {[%clk 0:02:56]} 6. Be3 {[%clk 0:02:54.7]} 6... Nd7 {[%clk 0:02:56.5]}
7. Bd3 {[%clk 0:02:51.6]} 7... e5 {[%clk 0:02:56.6]} 8. d5 {[%clk 0:02:49.9]}
8... Ne7 {[%clk 0:02:56.1]} 9. Nge2 {[%clk 0:02:41.2]} 9... f5 {[%clk
0:02:55.2]} 10. g3 {[%clk 0:02:31.5]} 10... O-O {[%clk 0:02:52.8]} 11. Qd2
{[%clk 0:02:29.3]} 11... Nc5 {[%clk 0:02:50.4]} 12. Bc2 {[%clk 0:02:28.6]} 12...
a5 {[%clk 0:02:48.1]} 13. h4 {[%clk 0:02:24.4]} 13... a4 {[%clk 0:02:47.9]} 14.
h5 {[%clk 0:02:24]} 14... Ba6 {[%clk 0:02:42.8]} 15. hxg6 {[%clk 0:02:16.6]}
15... hxg6 {[%clk 0:02:43]} 16. Bh6 {[%clk 0:02:17.1]} 16... f4 {[%clk
0:02:27.2]} 17. Bxg7 {[%clk 0:02:06.8]} 17... Kxg7 {[%clk 0:02:28.1]} 18. gxf4
{[%clk 0:02:07.4]} 18... Rh8 {[%clk 0:02:27.8]} 19. O-O-O {[%clk 0:02:03.6]}
19... Bxc4 {[%clk 0:02:27.5]} 20. f5 {[%clk 0:01:10.4]} 20... Bxe2 {[%clk
0:02:03.9]} 21. Nxe2 {[%clk 0:01:06.1]} 21... Qf8 {[%clk 0:01:37.5]} 22. Rxh8
{[%clk 0:01:04.8]} 22... Qxh8 {[%clk 0:01:35.6]} 23. Qg5 {[%clk 0:01:03.6]}
23... Rf8 {[%clk 0:01:31.8]} 24. Qxe7+ {[%clk 0:01:02.5]} 24... Rf7 {[%clk
0:01:27.5]} 25. f6+ {[%clk 0:01:00.8]} 25... Kg8 {[%clk 0:01:25.4]} 26. Qe8+
{[%clk 0:01:00.9]} 26... Rf8 {[%clk 0:01:25.9]} 27. Qxg6+ {[%clk 0:01:01.1]}
27... Qg7 {[%clk 0:01:26.7]} 28. Qxg7# {[%clk 0:01:01.7]} 1-0

[Event "Early-Titled-Tuesday-Blitz-November-28-2023"]
[Site "Chess.com"]
[Date "2023.11.28"]
[Round "7"]
[White "OneTrickPony_82"]
[Black "LUISMIGUELOV"]
[Result "1-0"]
[WhiteElo "2417"]
[BlackElo "2216"]
[TimeControl "180+1"]
[EndTime "9:22:42 PST"]
[Termination "OneTrickPony_82 won on time"]

1. d4 {[%clk 0:03:00.9]} 1... d5 {[%clk 0:02:56.4]} 2. c4 {[%clk 0:03:01.2]}
2... c6 {[%clk 0:02:56.1]} 3. Nf3 {[%clk 0:03:01.1]} 3... Nf6 {[%clk 0:02:54.5]}
4. cxd5 {[%clk 0:03:01.3]} 4... cxd5 {[%clk 0:02:53.5]} 5. Nc3 {[%clk
0:03:01.4]} 5... Qb6 {[%clk 0:02:48.2]} 6. a3 {[%clk 0:02:59]} 6... Nc6 {[%clk
0:02:47.1]} 7. Bf4 {[%clk 0:02:58.7]} 7... Bf5 {[%clk 0:02:40.2]} 8. e3 {[%clk
0:02:58.2]} 8... e6 {[%clk 0:02:39.9]} 9. Bb5 {[%clk 0:02:52.5]} 9... Be7 {[%clk
0:02:37.7]} 10. O-O {[%clk 0:02:51.9]} 10... O-O {[%clk 0:02:37.3]} 11. b4
{[%clk 0:02:50.3]} 11... Rac8 {[%clk 0:02:30.8]} 12. Rc1 {[%clk 0:02:48.5]}
12... a6 {[%clk 0:02:24.1]} 13. Be2 {[%clk 0:02:47.3]} 13... Ne4 {[%clk
0:02:21.8]} 14. Na4 {[%clk 0:02:44.2]} 14... Qd8 {[%clk 0:02:09.1]} 15. Nc5
{[%clk 0:02:41.8]} 15... Nxc5 {[%clk 0:02:08.3]} 16. bxc5 {[%clk 0:02:40.9]}
16... b6 {[%clk 0:01:57.6]} 17. Bxa6 {[%clk 0:02:40]} 17... Ra8 {[%clk
0:01:57.5]} 18. Bb7 {[%clk 0:02:35.8]} 18... Rxa3 {[%clk 0:01:45.1]} 19. Bxc6
{[%clk 0:02:35.4]} 19... bxc5 {[%clk 0:01:45.3]} 20. dxc5 {[%clk 0:02:32.8]}
20... Be4 {[%clk 0:01:35.9]} 21. Bb5 {[%clk 0:02:28.3]} 21... Bxf3 {[%clk
0:01:27.3]} 22. Qxf3 {[%clk 0:02:23.7]} 22... Ra5 {[%clk 0:01:27.4]} 23. Qe2
{[%clk 0:02:22.2]} 23... Qa8 {[%clk 0:01:10.1]} 24. c6 {[%clk 0:02:21.5]} 24...
Rc8 {[%clk 0:01:09.2]} 25. c7 {[%clk 0:02:19.8]} 25... Ba3 {[%clk 0:00:38.1]}
26. Rc2 {[%clk 0:02:16.1]} 26... Ra7 {[%clk 0:00:13.7]} 27. Bd7 {[%clk
0:02:14.4]} 1-0

[Event "Early-Titled-Tuesday-Blitz-November-28-2023"]
[Site "Chess.com"]
[Date "2023.11.28"]
[Round "7"]
[White "Roedor"]
[Black "nuadvaga"]
[Result "1/2-1/2"]
[WhiteElo "2401"]
[BlackElo "2272"]
[TimeControl "180+1"]
[EndTime "9:22:49 PST"]
[Termination "Game drawn by repetition"]

1. d4 {[%clk 0:00:14]} 1... Nf6 {[%clk 0:02:57]} 2. c4 {[%clk 0:00:13.8]} 2...
c5 {[%clk 0:02:57]} 3. g3 {[%clk 0:00:14.7]} 3... cxd4 {[%clk 0:02:56.6]} 4.
Qxd4 {[%clk 0:00:15.6]} 4... Nc6 {[%clk 0:02:56.6]} 5. Qd1 {[%clk 0:00:16.5]}
5... g6 {[%clk 0:02:56.9]} 6. Bg2 {[%clk 0:00:17]} 6... Bg7 {[%clk 0:02:57.8]}
7. Nc3 {[%clk 0:00:17.7]} 7... O-O {[%clk 0:02:58.3]} 8. Nf3 {[%clk 0:00:18.6]}
8... d6 {[%clk 0:02:58.6]} 9. O-O {[%clk 0:00:19.5]} 9... Bg4 {[%clk 0:02:58.9]}
10. b3 {[%clk 0:00:19.4]} 10... Ne4 {[%clk 0:02:57.6]} 11. Nxe4 {[%clk
0:00:19.5]} 11... Bxa1 {[%clk 0:02:56.3]} 12. Bh6 {[%clk 0:00:20.1]} 12... Bg7
{[%clk 0:02:53]} 13. Bxg7 {[%clk 0:00:20.6]} 13... Kxg7 {[%clk 0:02:53.9]} 14.
Nd4 {[%clk 0:00:21]} 14... Bd7 {[%clk 0:02:51.3]} 15. Nxc6 {[%clk 0:00:19.1]}
15... Bxc6 {[%clk 0:02:52.2]} 16. Qd4+ {[%clk 0:00:19.5]} 16... Kg8 {[%clk
0:02:51.3]} 17. h4 {[%clk 0:00:18.3]} 17... Qa5 {[%clk 0:02:50.5]} 18. Rd1
{[%clk 0:00:14.5]} 18... Qxa2 {[%clk 0:02:47.4]} 19. h5 {[%clk 0:00:14.7]} 19...
Qxb3 {[%clk 0:02:45.5]} 20. h6 {[%clk 0:00:13.9]} 20... f6 {[%clk 0:02:41.6]}
21. Ng5 {[%clk 0:00:14.3]} 21... Bxg2 {[%clk 0:02:38.2]} 22. Kxg2 {[%clk
0:00:14]} 22... Qb6 {[%clk 0:02:30.5]} 23. Qd5+ {[%clk 0:00:14.1]} 23... Kh8
{[%clk 0:02:25.4]} 24. Nf7+ {[%clk 0:00:14.5]} 24... Kg8 {[%clk 0:02:14.6]} 25.
Ng5+ {[%clk 0:00:13.7]} 25... Kh8 {[%clk 0:01:58.5]} 26. Nf7+ {[%clk 0:00:13.8]}
26... Kg8 {[%clk 0:01:53.8]} 27. Ng5+ {[%clk 0:00:13.2]} 1/2-1/2

[Event "Early-Titled-Tuesday-Blitz-November-28-2023"]
[Site "Chess.com"]
[Date "2023.11.28"]
[Round "7"]
[White "Pingah9"]
[Black "RebecaJimnz"]
[Result "1-0"]
[WhiteElo "2538"]
[BlackElo "2310"]
[TimeControl "180+1"]
[EndTime "9:22:57 PST"]
[Termination "Pingah9 won by resignation"]

1. e4 {[%clk 0:03:00.9]} 1... c5 {[%clk 0:03:00.1]} 2. Nc3 {[%clk 0:02:58.3]}
2... Nc6 {[%clk 0:03:00.2]} 3. g3 {[%clk 0:02:58.7]} 3... g6 {[%clk 0:03:00.9]}
4. Bg2 {[%clk 0:02:59.1]} 4... Bg7 {[%clk 0:03:01.6]} 5. d3 {[%clk 0:02:59.5]}
5... d6 {[%clk 0:03:00.9]} 6. Be3 {[%clk 0:02:59.7]} 6... Rb8 {[%clk 0:02:57.5]}
7. a4 {[%clk 0:02:59.1]} 7... a6 {[%clk 0:02:53.6]} 8. Qd2 {[%clk 0:02:58.6]}
8... b5 {[%clk 0:02:52.8]} 9. axb5 {[%clk 0:02:59.5]} 9... axb5 {[%clk
0:02:52.9]} 10. Nge2 {[%clk 0:02:59.9]} 10... Nd4 {[%clk 0:02:51.9]} 11. h3
{[%clk 0:02:52.1]} 11... b4 {[%clk 0:02:48]} 12. Nd1 {[%clk 0:02:51.4]} 12... e6
{[%clk 0:02:48.6]} 13. Nc1 {[%clk 0:02:47.1]} 13... Ne7 {[%clk 0:02:47.1]} 14.
c3 {[%clk 0:02:41.8]} 14... bxc3 {[%clk 0:02:47.6]} 15. bxc3 {[%clk 0:02:42.7]}
15... Ndc6 {[%clk 0:02:42.7]} 16. Bh6 {[%clk 0:02:40.9]} 16... O-O {[%clk
0:02:41.5]} 17. O-O {[%clk 0:02:39.1]} 17... e5 {[%clk 0:02:17.2]} 18. Bxg7
{[%clk 0:02:38.1]} 18... Kxg7 {[%clk 0:02:18.1]} 19. Ne2 {[%clk 0:02:35.6]}
19... f5 {[%clk 0:02:17.2]} 20. exf5 {[%clk 0:02:31.8]} 20... Bxf5 {[%clk
0:02:16.4]} 21. d4 {[%clk 0:02:24.3]} 21... cxd4 {[%clk 0:02:10.2]} 22. cxd4
{[%clk 0:02:25.2]} 22... Qd7 {[%clk 0:02:05.6]} 23. g4 {[%clk 0:02:08.2]} 23...
Bxg4 {[%clk 0:01:29.3]} 24. hxg4 {[%clk 0:02:09.1]} 24... Qxg4 {[%clk
0:01:29.6]} 25. Ne3 {[%clk 0:02:08.4]} 25... Qg5 {[%clk 0:01:26.1]} 26. dxe5
{[%clk 0:01:53.9]} 26... Nxe5 {[%clk 0:01:23.4]} 27. Ng3 {[%clk 0:01:51.2]}
27... Kg8 {[%clk 0:01:03.5]} 28. Qxd6 {[%clk 0:01:45.9]} 28... Nf3+ {[%clk
0:00:47.7]} 29. Bxf3 {[%clk 0:01:42.7]} 29... Rbd8 {[%clk 0:00:37.3]} 30. Qe6+
{[%clk 0:01:41.9]} 30... Kh8 {[%clk 0:00:35.6]} 31. Bg2 {[%clk 0:01:39.8]} 1-0

[Event "Early-Titled-Tuesday-Blitz-November-28-2023"]
[Site "Chess.com"]
[Date "2023.11.28"]
[Round "7"]
[White "jcmesafischer"]
[Black "SaqoChess_Twitch"]
[Result "0-1"]
[WhiteElo "2343"]
[BlackElo "2639"]
[TimeControl "180+1"]
[EndTime "9:22:58 PST"]
[Termination "SaqoChess_Twitch won by resignation"]

1. e4 {[%clk 0:02:57.2]} 1... c5 {[%clk 0:02:59.7]} 2. Nf3 {[%clk 0:02:51.6]}
2... d6 {[%clk 0:03:00]} 3. d4 {[%clk 0:02:47.4]} 3... cxd4 {[%clk 0:03:00.9]}
4. Nxd4 {[%clk 0:02:48]} 4... Nf6 {[%clk 0:03:01.6]} 5. Nc3 {[%clk 0:02:48]}
5... g6 {[%clk 0:03:02.1]} 6. Be3 {[%clk 0:02:43.2]} 6... Bg7 {[%clk 0:03:02.4]}
7. f3 {[%clk 0:02:43.4]} 7... O-O {[%clk 0:03:03]} 8. Qd2 {[%clk 0:02:18.1]}
8... Nc6 {[%clk 0:03:03.2]} 9. g4 {[%clk 0:02:18.2]} 9... Nxd4 {[%clk
0:03:01.6]} 10. Bxd4 {[%clk 0:02:15.8]} 10... Be6 {[%clk 0:03:02.5]} 11. h4
{[%clk 0:02:12.1]} 11... Qa5 {[%clk 0:03:01.9]} 12. h5 {[%clk 0:02:07.7]} 12...
Rfc8 {[%clk 0:03:00.5]} 13. hxg6 {[%clk 0:02:04.3]} 13... hxg6 {[%clk
0:02:58.7]} 14. g5 {[%clk 0:02:03.6]} 14... Nh5 {[%clk 0:02:58.2]} 15. Bxg7
{[%clk 0:01:54.3]} 15... Kxg7 {[%clk 0:02:59.1]} 16. a3 {[%clk 0:01:51.4]} 16...
Qe5 {[%clk 0:02:46.2]} 17. O-O-O {[%clk 0:01:36.6]} 17... Qf4 {[%clk 0:02:43]}
18. Bh3 {[%clk 0:01:19.3]} 18... Qxd2+ {[%clk 0:02:39.9]} 19. Kxd2 {[%clk
0:01:14.5]} 19... Bxh3 {[%clk 0:02:32.2]} 20. Rxh3 {[%clk 0:01:13.2]} 20... Nf4
{[%clk 0:02:31.3]} 21. Rh4 {[%clk 0:01:01.2]} 21... Ne6 {[%clk 0:02:31.3]} 22.
f4 {[%clk 0:00:57.5]} 22... Rh8 {[%clk 0:02:31.1]} 23. Rxh8 {[%clk 0:00:39.2]}
23... Rxh8 {[%clk 0:02:30.3]} 24. Nd5 {[%clk 0:00:39.4]} 24... Nc5 {[%clk
0:02:16.9]} 25. Nxe7 {[%clk 0:00:28.4]} 25... Re8 {[%clk 0:02:07.1]} 26. Nd5
{[%clk 0:00:25.6]} 26... Rxe4 {[%clk 0:02:07.8]} 27. b4 {[%clk 0:00:19.4]} 27...
Ne6 {[%clk 0:02:05.9]} 28. Kd3 {[%clk 0:00:13.9]} 28... Rd4+ {[%clk 0:02:02.7]}
29. Ke2 {[%clk 0:00:13.3]} 29... Rxd5 {[%clk 0:02:02.8]} 30. Rxd5 {[%clk
0:00:09.1]} 30... Nxf4+ {[%clk 0:02:02.6]} 31. Ke3 {[%clk 0:00:09.8]} 31...
Nxd5+ {[%clk 0:02:03.5]} 32. Kd4 {[%clk 0:00:10.7]} 32... Ne7 {[%clk 0:02:03.5]}
33. c4 {[%clk 0:00:11.2]} 33... f6 {[%clk 0:02:03.6]} 0-1

[Event "Early-Titled-Tuesday-Blitz-November-28-2023"]
[Site "Chess.com"]
[Date "2023.11.28"]
[Round "7"]
[White "Nikolakis2014"]
[Black "Elsa167"]
[Result "0-1"]
[WhiteElo "2787"]
[BlackElo "2911"]
[TimeControl "180+1"]
[EndTime "9:23:02 PST"]
[Termination "Elsa167 won by resignation"]

1. Nf3 {[%clk 0:03:00.9]} 1... Nf6 {[%clk 0:02:59.9]} 2. c4 {[%clk 0:02:59.8]}
2... g6 {[%clk 0:03:00.2]} 3. Nc3 {[%clk 0:02:59.5]} 3... Bg7 {[%clk 0:03:00.7]}
4. e4 {[%clk 0:02:59.9]} 4... d6 {[%clk 0:03:01.2]} 5. d4 {[%clk 0:03:00.5]}
5... Bg4 {[%clk 0:03:00.5]} 6. Be2 {[%clk 0:03:00.6]} 6... Bxf3 {[%clk
0:03:00.6]} 7. Bxf3 {[%clk 0:03:00.4]} 7... e5 {[%clk 0:03:01.3]} 8. d5 {[%clk
0:02:59.6]} 8... h5 {[%clk 0:03:00.4]} 9. h4 {[%clk 0:02:58.2]} 9... Nbd7 {[%clk
0:02:58.4]} 10. b3 {[%clk 0:02:48.2]} 10... a5 {[%clk 0:02:56.7]} 11. g3 {[%clk
0:02:44.9]} 11... Nc5 {[%clk 0:02:54.7]} 12. O-O {[%clk 0:02:43.9]} 12... Bh6
{[%clk 0:02:54.2]} 13. Bb2 {[%clk 0:02:41.8]} 13... g5 {[%clk 0:02:48.1]} 14.
hxg5 {[%clk 0:02:35.6]} 14... Bxg5 {[%clk 0:02:49]} 15. Kg2 {[%clk 0:02:35.9]}
15... h4 {[%clk 0:02:48.3]} 16. Rh1 {[%clk 0:02:36]} 16... Ke7 {[%clk
0:02:42.3]} 17. Bc1 {[%clk 0:02:01.3]} 17... Qg8 {[%clk 0:02:36.6]} 18. Nb5
{[%clk 0:01:54]} 18... Bxc1 {[%clk 0:02:23.1]} 19. Rxc1 {[%clk 0:01:52.5]} 19...
hxg3 {[%clk 0:02:02.3]} 20. fxg3 {[%clk 0:01:47.6]} 20... Qg5 {[%clk 0:01:43.4]}
21. Rxh8 {[%clk 0:00:23.4]} 21... Rxh8 {[%clk 0:01:44.3]} 22. Qg1 {[%clk
0:00:23.5]} 22... Qd2+ {[%clk 0:01:31.2]} 0-1

[Event "Early-Titled-Tuesday-Blitz-November-28-2023"]
[Site "Chess.com"]
[Date "2023.11.28"]
[Round "7"]
[White "PabloZarnicki"]
[Black "Laico"]
[Result "1-0"]
[WhiteElo "2550"]
[BlackElo "2342"]
[TimeControl "180+1"]
[EndTime "9:23:19 PST"]
[Termination "PabloZarnicki won by resignation"]

1. e4 {[%clk 0:03:00.9]} 1... e6 {[%clk 0:02:57.5]} 2. d4 {[%clk 0:03:00.7]}
2... d5 {[%clk 0:02:57.6]} 3. exd5 {[%clk 0:02:54.2]} 3... exd5 {[%clk 0:02:55]}
4. Nf3 {[%clk 0:02:55.1]} 4... Bg4 {[%clk 0:02:53.1]} 5. Bd3 {[%clk 0:02:56]}
5... Nc6 {[%clk 0:02:52.8]} 6. c3 {[%clk 0:02:46.4]} 6... Bd6 {[%clk 0:02:52.5]}
7. h3 {[%clk 0:02:43.6]} 7... Bh5 {[%clk 0:02:52]} 8. O-O {[%clk 0:02:42.7]}
8... Qd7 {[%clk 0:02:48.3]} 9. Nbd2 {[%clk 0:02:39.6]} 9... O-O-O {[%clk
0:02:42.7]} 10. b4 {[%clk 0:02:39.1]} 10... g5 {[%clk 0:02:23.7]} 11. Qc2 {[%clk
0:02:34]} 11... Nge7 {[%clk 0:02:13.1]} 12. b5 {[%clk 0:02:22.3]} 12... Nb8
{[%clk 0:02:01.5]} 13. Ne5 {[%clk 0:02:15.3]} 13... Bxe5 {[%clk 0:01:47]} 14.
dxe5 {[%clk 0:02:16.2]} 14... Rhg8 {[%clk 0:01:43.8]} 15. Nb3 {[%clk 0:02:13.6]}
15... b6 {[%clk 0:00:58.7]} 16. a4 {[%clk 0:02:13]} 16... g4 {[%clk 0:00:48.2]}
17. h4 {[%clk 0:02:11.5]} 17... g3 {[%clk 0:00:48.7]} 18. fxg3 {[%clk
0:02:04.1]} 18... Rxg3 {[%clk 0:00:49.6]} 19. Nd4 {[%clk 0:01:59]} 19... Rdg8
{[%clk 0:00:45.5]} 20. Bg5 {[%clk 0:01:52.1]} 20... h6 {[%clk 0:00:31.9]} 21.
Bxe7 {[%clk 0:01:51.6]} 21... Rxg2+ {[%clk 0:00:27.4]} 22. Qxg2 {[%clk
0:01:50.6]} 22... Rxg2+ {[%clk 0:00:28.3]} 23. Kxg2 {[%clk 0:01:50.9]} 23...
Qxe7 {[%clk 0:00:28.8]} 24. Nf5 {[%clk 0:01:30.7]} 24... Qxe5 {[%clk 0:00:25.9]}
25. Rae1 {[%clk 0:01:29.3]} 25... Qxc3 {[%clk 0:00:23.9]} 26. Ne7+ {[%clk
0:01:21.9]} 26... Kd7 {[%clk 0:00:20.5]} 27. Bf5+ {[%clk 0:01:21.8]} 27... Kd6
{[%clk 0:00:20.2]} 28. Nc8+ {[%clk 0:01:19.8]} 1-0

[Event "Early-Titled-Tuesday-Blitz-November-28-2023"]
[Site "Chess.com"]
[Date "2023.11.28"]
[Round "7"]
[White "Crasmus"]
[Black "Herman-NY"]
[Result "0-1"]
[WhiteElo "2276"]
[BlackElo "2492"]
[TimeControl "180+1"]
[EndTime "9:23:19 PST"]
[Termination "Herman-NY won by checkmate"]

1. c4 {[%clk 0:03:00.9]} 1... Nf6 {[%clk 0:02:59.9]} 2. g3 {[%clk 0:03:01.8]}
2... g6 {[%clk 0:02:58.9]} 3. Bg2 {[%clk 0:03:02.7]} 3... Bg7 {[%clk 0:02:59.7]}
4. Nc3 {[%clk 0:03:02.8]} 4... O-O {[%clk 0:03:00.6]} 5. d3 {[%clk 0:03:03.4]}
5... e5 {[%clk 0:02:59.4]} 6. Bg5 {[%clk 0:03:03.8]} 6... c6 {[%clk 0:02:58.3]}
7. Qd2 {[%clk 0:03:03.6]} 7... Qb6 {[%clk 0:02:51.1]} 8. Nf3 {[%clk 0:02:57.5]}
8... Re8 {[%clk 0:02:49.2]} 9. O-O {[%clk 0:02:54.8]} 9... d6 {[%clk 0:02:42.6]}
10. Rab1 {[%clk 0:02:53.6]} 10... a5 {[%clk 0:02:39.8]} 11. a3 {[%clk
0:02:50.8]} 11... a4 {[%clk 0:02:38.2]} 12. Qc2 {[%clk 0:02:41.5]} 12... Qa6
{[%clk 0:02:28.6]} 13. b4 {[%clk 0:02:33.3]} 13... axb3 {[%clk 0:02:28.6]} 14.
Rxb3 {[%clk 0:02:33.4]} 14... Nbd7 {[%clk 0:02:26.7]} 15. Rfb1 {[%clk
0:02:17.1]} 15... Nc5 {[%clk 0:02:24]} 16. Rb6 {[%clk 0:02:17.1]} 16... Qxa3
{[%clk 0:02:24.6]} 17. Bc1 {[%clk 0:02:16.2]} 17... Qa7 {[%clk 0:02:23.8]} 18.
e3 {[%clk 0:02:12.6]} 18... Bf5 {[%clk 0:02:19.1]} 19. Bf1 {[%clk 0:02:07.3]}
19... e4 {[%clk 0:02:04.4]} 20. Ne1 {[%clk 0:01:50.9]} 20... exd3 {[%clk
0:01:53]} 21. Nxd3 {[%clk 0:01:48.8]} 21... Nfd7 {[%clk 0:01:44.6]} 22. R6b4
{[%clk 0:01:37.8]} 22... Ne5 {[%clk 0:01:04.6]} 23. e4 {[%clk 0:01:37.8]} 23...
Nf3+ {[%clk 0:00:43.1]} 24. Kh1 {[%clk 0:01:31.1]} 24... Nxe4 {[%clk 0:00:25.9]}
25. Nxe4 {[%clk 0:01:27.2]} 25... Bxe4 {[%clk 0:00:23.2]} 26. Bg2 {[%clk
0:01:24.4]} 26... Bxd3 {[%clk 0:00:15.6]} 27. Qxd3 {[%clk 0:01:23.9]} 27... Re1+
{[%clk 0:00:16]} 28. Bf1 {[%clk 0:01:24.2]} 28... Qxf2 {[%clk 0:00:16.4]} 29.
Be3 {[%clk 0:01:21.9]} 29... Qxh2# {[%clk 0:00:14.3]} 0-1

[Event "Early-Titled-Tuesday-Blitz-November-28-2023"]
[Site "Chess.com"]
[Date "2023.11.28"]
[Round "7"]
[White "LuisFSiles"]
[Black "GlavkonVVS"]
[Result "1-0"]
[WhiteElo "2357"]
[BlackElo "2529"]
[TimeControl "180+1"]
[EndTime "9:23:21 PST"]
[Termination "LuisFSiles won by resignation"]

1. e4 {[%clk 0:01:28.5]} 1... Nf6 {[%clk 0:02:54.9]} 2. e5 {[%clk 0:01:28.3]}
2... Nd5 {[%clk 0:02:54.6]} 3. c4 {[%clk 0:01:28.9]} 3... Nb6 {[%clk 0:02:54.3]}
4. c5 {[%clk 0:01:29.7]} 4... Nd5 {[%clk 0:02:54.4]} 5. Nc3 {[%clk 0:01:30.4]}
5... e6 {[%clk 0:02:54.9]} 6. Nxd5 {[%clk 0:01:29.7]} 6... exd5 {[%clk 0:02:55]}
7. d4 {[%clk 0:01:30.6]} 7... b6 {[%clk 0:02:55.4]} 8. cxb6 {[%clk 0:01:30.2]}
8... axb6 {[%clk 0:02:55.7]} 9. Nf3 {[%clk 0:01:30.5]} 9... c6 {[%clk
0:02:54.3]} 10. h4 {[%clk 0:01:30.6]} 10... Be7 {[%clk 0:02:54.3]} 11. h5 {[%clk
0:01:31]} 11... h6 {[%clk 0:02:53.9]} 12. Bd3 {[%clk 0:01:31.5]} 12... Ba6
{[%clk 0:02:54.2]} 13. Bc2 {[%clk 0:01:31]} 13... d6 {[%clk 0:02:51.7]} 14. Bf4
{[%clk 0:01:30.7]} 14... dxe5 {[%clk 0:02:51.3]} 15. Nxe5 {[%clk 0:01:31.6]}
15... O-O {[%clk 0:02:41.9]} 16. Qg4 {[%clk 0:01:31.3]} 16... Bg5 {[%clk
0:02:42]} 17. Qf5 {[%clk 0:01:30.7]} 17... g6 {[%clk 0:02:09.7]} 18. hxg6 {[%clk
0:01:25.7]} 18... Qf6 {[%clk 0:02:00.1]} 19. gxf7+ {[%clk 0:01:10.7]} 19... Rxf7
{[%clk 0:02:00.2]} 20. Nxf7 {[%clk 0:01:03.5]} 20... Qxf5 {[%clk 0:01:59.4]} 21.
Bxf5 {[%clk 0:01:02.7]} 21... Bxf4 {[%clk 0:01:57.9]} 22. Nxh6+ {[%clk
0:01:00.9]} 22... Kg7 {[%clk 0:01:58]} 23. Ng4 {[%clk 0:00:59.7]} 23... Bg5
{[%clk 0:01:40.9]} 24. Rh7+ {[%clk 0:00:55.8]} 24... Kg8 {[%clk 0:01:41]} 25. f4
{[%clk 0:00:55.3]} 25... Bxf4 {[%clk 0:01:06.7]} 26. Nf6+ {[%clk 0:00:52]} 26...
Kf8 {[%clk 0:01:06.8]} 27. Be6 {[%clk 0:00:46.5]} 27... Bg3+ {[%clk 0:01:00.9]}
28. Kd1 {[%clk 0:00:44.3]} 1-0

[Event "Early-Titled-Tuesday-Blitz-November-28-2023"]
[Site "Chess.com"]
[Date "2023.11.28"]
[Round "7"]
[White "DonCiao"]
[Black "Tsomaia_Nikoloz"]
[Result "0-1"]
[WhiteElo "2114"]
[BlackElo "2349"]
[TimeControl "180+1"]
[EndTime "9:23:47 PST"]
[Termination "Tsomaia_Nikoloz won by resignation"]

1. c4 {[%clk 0:03:00.9]} 1... Nf6 {[%clk 0:02:58.9]} 2. g3 {[%clk 0:03:00.7]}
2... g6 {[%clk 0:02:59.1]} 3. Bg2 {[%clk 0:03:00.9]} 3... Bg7 {[%clk 0:03:00]}
4. Nc3 {[%clk 0:03:00.9]} 4... O-O {[%clk 0:03:00.4]} 5. e4 {[%clk 0:03:01.1]}
5... d6 {[%clk 0:02:59.6]} 6. Nge2 {[%clk 0:03:01]} 6... e5 {[%clk 0:02:59.2]}
7. O-O {[%clk 0:03:00.9]} 7... Nbd7 {[%clk 0:02:53.4]} 8. d3 {[%clk 0:02:59.9]}
8... c6 {[%clk 0:02:40.8]} 9. h3 {[%clk 0:02:59.8]} 9... Nh5 {[%clk 0:02:40]}
10. Be3 {[%clk 0:02:59.2]} 10... f5 {[%clk 0:02:39.6]} 11. exf5 {[%clk
0:02:58.3]} 11... gxf5 {[%clk 0:02:40.5]} 12. f4 {[%clk 0:02:58.4]} 12... Qf6
{[%clk 0:02:34.2]} 13. Qd2 {[%clk 0:02:58.2]} 13... Qg6 {[%clk 0:02:34.1]} 14.
Kh2 {[%clk 0:02:57]} 14... Kh8 {[%clk 0:02:34.6]} 15. Rae1 {[%clk 0:02:50.7]}
15... Rg8 {[%clk 0:02:34.5]} 16. Bf3 {[%clk 0:02:46.9]} 16... Ndf6 {[%clk
0:02:12.4]} 17. Rg1 {[%clk 0:02:31.6]} 17... Bd7 {[%clk 0:02:00]} 18. b4 {[%clk
0:02:03.4]} 18... a6 {[%clk 0:01:55.3]} 19. a4 {[%clk 0:02:02.3]} 19... Rae8
{[%clk 0:01:54.5]} 20. b5 {[%clk 0:02:01.6]} 20... Bh6 {[%clk 0:01:46.3]} 21.
bxa6 {[%clk 0:01:45.5]} 21... bxa6 {[%clk 0:01:45.8]} 22. Rb1 {[%clk 0:01:44.5]}
22... Rb8 {[%clk 0:00:49.3]} 23. Rxb8 {[%clk 0:01:38.8]} 23... Rxb8 {[%clk
0:00:48.5]} 24. fxe5 {[%clk 0:01:27]} 24... Bxe3 {[%clk 0:00:43.6]} 25. Qxe3
{[%clk 0:01:27]} 25... dxe5 {[%clk 0:00:41.5]} 26. Qxe5 {[%clk 0:01:26.8]} 26...
Re8 {[%clk 0:00:36.7]} 27. Qd4 {[%clk 0:01:26.4]} 27... Qg7 {[%clk 0:00:25.7]}
28. Nf4 {[%clk 0:01:23.6]} 28... Ng4+ {[%clk 0:00:24]} 29. hxg4 {[%clk
0:01:07.4]} 29... Qxd4 {[%clk 0:00:24.9]} 30. Nce2 {[%clk 0:01:07.1]} 30... Qf2+
{[%clk 0:00:20.6]} 31. Rg2 {[%clk 0:01:06.2]} 31... Qxf3 {[%clk 0:00:20.2]} 32.
Nxh5 {[%clk 0:01:05.6]} 32... Rxe2 {[%clk 0:00:19.4]} 0-1